bitfinex/quotes_ETHUSD_20250730
["timestamp","ask_amount","ask_price","bid_price","bid_amount"]
[1753862250496,1.15957244,3812.4,3811.8,0.1312]
[1753862250646,0.24327244,3812.3,3811.9,4.107]
[1753862251011,1.18167244,3812.2,3811.9,4.107]
[1753862251177,0.24327244,3812.1,3811.9,4.107]
[1753862251358,0.24327244,3812.0,3811.9,4.107]
[1753862251977,0.24327244,3812.0,3811.8,2.62341959]
[1753862252282,0.4496,3812.2,3811.9,4.106]
[1753862252492,0.2440124,3812.1,3811.9,4.106]
[1753862252680,0.2440124,3812.0,3811.9,4.106]
[1753862254764,0.2440124,3812.0,3811.9,7.18356367]
[1753862255200,0.2440124,3812.0,3811.9,10.30854037]
[1753862255398,0.5,3812.6,3812.5,2.62295081]
[1753862255561,0.74402596,3812.6,3812.5,6.72595081]
[1753862255760,1.19362596,3812.6,3812.5,0.1312]
[1753862256070,0.74402596,3812.6,3812.5,4.5572]
[1753862256285,0.74402596,3812.6,3812.5,7.18015081]
[1753862256480,0.74402596,3812.6,3812.5,7.95565081]
[1753862258572,0.74402596,3812.6,3812.5,3.85265081]
[1753862258783,0.74402596,3812.6,3812.5,7.95665081]
[1753862262197,0.5,3812.6,3812.5,7.95665081]
[1753862263502,0.5,3812.6,3812.5,3.85265081]
[1753862263688,0.5,3812.6,3812.5,7.95165081]
[1753862265880,0.5,3812.6,3812.5,8.25365081]
[1753862267066,0.5,3812.6,3812.5,8.80365081]
[1753862267272,0.5,3812.6,3812.5,4.70465081]
[1753862267477,0.5,3812.6,3812.5,8.49665081]
[1753862271119,0.502,3812.6,3812.5,8.49665081]
[1753862272310,0.502,3812.6,3812.5,3.39845081]
[1753862272494,0.502,3812.6,3812.5,7.48645081]
[1753862272701,0.502,3812.6,3812.5,11.06562751]
[1753862273299,0.502,3812.6,3812.5,11.61562751]
[1753862275587,0.502,3812.6,3812.5,11.91762751]
[1753862276210,0.04,3812.9,3812.8,3.93064443]
[1753862276409,0.04,3812.9,3812.8,11.14262113]
[1753862276614,0.002,3813.0,3812.9,3.40877565]
[1753862276929,0.002,3813.0,3812.9,4.16497565]
[1753862279215,0.002,3813.0,3812.9,4.7412024]
[1753862279685,0.002,3813.0,3812.9,4.71497565]
[1753862279885,0.002,3813.1,3813.0,3.17260687]
[1753862280134,0.002,3813.1,3813.0,8.91730687]
[1753862280483,0.193965,3813.7,3813.6,2.62219425]
[1753862280744,0.002,3813.8,3813.7,3.17212549]
[1753862280889,0.002,3813.8,3813.7,3.65532549]
[1753862281083,0.002,3813.8,3813.7,7.73832549]
[1753862281387,0.002,3813.8,3813.7,7.25812549]
[1753862281594,0.002,3813.8,3813.7,7.74132549]
[1753862282340,0.002,3813.8,3813.7,8.81862549]
[1753862282514,0.002,3813.8,3813.7,8.51662549]
[1753862282715,0.04,3813.9,3813.8,3.40255674]
[1753862282890,0.04,3813.9,3813.8,3.53375674]
[1753862283089,0.04,3813.9,3813.8,4.01695674]
[1753862283321,0.04,3813.9,3813.8,9.83303344]
[1753862283527,0.5043,3813.9,3813.8,10.38303344]
[1753862283726,0.9857,3813.9,3813.8,10.38303344]
[1753862284026,0.5043,3813.9,3813.8,10.38303344]
[1753862285431,0.04,3813.9,3813.8,6.70805674]
[1753862285594,0.5043,3813.9,3813.8,5.74703344]
[1753862285796,0.5043,3813.9,3813.8,9.83103344]
[1753862288460,0.04,3813.9,3813.8,9.83103344]
[1753862289160,0.04,3813.9,3813.8,10.31423344]
[1753862290473,0.04,3813.9,3813.8,10.86423344]
[1753862293058,0.042,3813.9,3813.8,10.38103344]
[1753862293255,0.042,3813.9,3813.8,10.99543344]
[1753862295196,0.042,3813.9,3813.8,11.78683344]
[1753862297730,0.042,3813.9,3813.8,11.30363344]
[1753862298018,0.042,3813.9,3813.8,11.78683344]
[1753862299591,0.042,3813.9,3813.8,12.08883344]
[1753862300936,1e-08,3813.9,3813.8,12.08883344]
[1753862301304,0.4663,3814.7,3814.6,2.62150684]
[1753862301506,0.4663,3814.7,3814.6,6.82170684]
[1753862302044,0.9477,3814.7,3814.6,6.82170684]
[1753862303043,1.14381767,3814.7,3814.6,6.82170684]
[1753862303831,1.14381767,3814.7,3814.6,7.37170684]
[1753862303832,0.002,3814.7,3814.6,7.37170684]
[1753862304140,0.002,3814.7,3814.6,7.85490684]
[1753862305940,0.002,3814.7,3814.6,10.49268354]
[1753862306829,0.4643,3816.0,3815.0,2.62123197]
[1753862307146,0.9857,3815.9,3815.3,4.00122586]
[1753862307314,0.9857,3815.9,3815.3,8.06522586]
[1753862307315,0.04,3815.9,3815.3,8.06522586]
[1753862307508,0.04,3815.9,3815.3,8.54842586]
[1753862308340,0.4643,3816.8,3816.7,2.62006445]
[1753862308512,0.4643,3816.8,3816.7,9.81004115]
[1753862308724,0.6631168,3816.8,3816.7,9.81004115]
[1753862309127,1.1445168,3816.8,3816.7,9.81004115]
[1753862309312,0.002,3817.1,3816.8,3.1699958]
[1753862310514,0.002,3817.1,3816.8,2.6199958]
[1753862310834,0.9652,3816.9,3816.8,6.6849958]
[1753862311615,0.9652,3816.9,3816.8,4.065]
[1753862311835,0.9652,3816.9,3816.8,6.6849958]
[1753862312040,1.7301,3816.9,3816.8,4.064]
[1753862312226,1.7301,3816.9,3816.8,6.6839958]
[1753862312426,0.9652,3816.9,3816.8,6.6839958]
[1753862313449,0.5055,3816.9,3816.8,6.6839958]
[1753862315350,0.9672,3816.9,3816.8,6.6839958]
[1753862316938,0.9672,3816.9,3816.8,6.8151958]
[1753862320052,0.5075,3816.9,3816.8,6.8151958]
[1753862320644,0.042,3816.9,3816.8,6.8151958]
[1753862322950,0.5075,3816.9,3816.8,6.8151958]
[1753862324355,0.042,3816.9,3816.8,6.8151958]
[1753862324765,0.042,3816.9,3816.8,7.3070958]
[1753862324971,0.042,3816.9,3816.8,6.8151958]
[1753862325258,0.042,3816.9,3816.8,7.8570958]
[1753862327802,0.042,3816.9,3816.8,7.3651958]
[1753862327997,0.5075,3816.9,3816.8,7.3651958]
[1753862328504,0.042,3816.9,3816.8,7.3651958]
[1753862328700,0.042,3816.9,3816.8,7.8570958]
[1753862330394,0.9672,3816.9,3816.8,2.7511958]
[1753862330690,0.5075,3816.9,3816.8,6.7991958]
[1753862330993,0.042,3816.9,3816.8,6.7991958]
[1753862331617,0.9672,3816.9,3816.8,6.7991958]
[1753862331924,0.5075,3816.9,3816.8,6.7991958]
[1753862333985,0.5532,3816.9,3816.8,6.7991958]
[1753862334811,1.0129,3816.9,3816.8,6.7991958]
[1753862335427,1.0129,3816.9,3816.8,6.7941958]
[1753862340112,1.0129,3816.9,3816.8,0.1312]
[1753862340304,1.0129,3816.9,3816.8,4.1722]
[1753862340507,1.2579104,3816.9,3816.8,4.1722]
[1753862341439,1.25789372,3816.9,3816.8,4.1722]
[1753862343247,1.0129,3816.9,3816.8,4.1722]
[1753862343939,1.25781069,3816.9,3816.8,4.038]
[1753862347931,0.7698,3816.8,3816.2,2.6204031]
[1753862348130,0.37611069,3816.7,3816.3,4.036]
[1753862348304,0.9018,3816.6,3816.3,6.65633664]
[1753862348512,0.1312,3816.7,3816.3,6.65633664]
[1753862348706,0.9018,3816.5,3816.3,6.65633664]
[1753862349245,0.1312,3816.7,3816.3,4.036]
[1753862349449,0.9018,3816.6,3816.4,0.1312]
[1753862349742,0.9018,3816.6,3816.5,4.036]
[1753862349940,0.4533,3816.6,3816.5,4.036]
[1753862350526,0.9018,3816.6,3816.5,4.036]
[1753862352219,0.9018,3816.6,3815.9,0.001]
[1753862352418,0.1312,3816.7,3816.2,0.1312]
[1753862352619,0.9018,3816.5,3816.3,4.036]
[1753862352842,0.9018,3816.4,3816.3,4.036]
[1753862355724,0.4485,3816.4,3816.3,4.036]
[1753862355949,0.9018,3816.4,3816.3,4.036]
[1753862358252,0.9018,3816.4,3816.2,2.75160505]
[1753862358460,0.9018,3816.4,3816.3,4.036]
[1753862359173,0.4485,3816.4,3816.3,4.036]
[1753862360764,0.4485,3816.4,3816.3,6.65633907]
[1753862361566,0.4485,3816.7,3816.4,2.62021837]
[1753862361861,0.4485,3816.6,3816.5,4.036]
[1753862362040,0.9018,3816.6,3816.5,4.036]
[1753862371349,1.689328,3816.6,3816.5,4.036]
[1753862371550,1.689328,3816.6,3816.2,3.25039066]
[1753862371772,0.4399,3816.5,3816.3,4.5348]
[1753862372145,1.227428,3816.5,3816.4,2.62027041]
[1753862372343,1.227428,3816.5,3816.3,7.15512179]
[1753862372696,0.7698,3816.8,3816.4,3.11907041]
[1753862372874,0.901,3816.8,3816.5,4.036]
[1753862373077,0.787513,3816.6,3816.5,4.036]
[1753862373465,1.227413,3816.6,3816.5,4.036]
[1753862374167,1.227413,3816.6,3816.5,6.65620175]
[1753862374897,0.4399,3816.6,3816.5,6.65620175]
[1753862377111,0.787498,3816.7,3816.6,2.6201331]
[1753862377253,0.0877,3816.9,3816.7,2.62002769]
[1753862377588,0.0877,3816.9,3816.8,4.036]
[1753862377940,0.33255037,3816.9,3816.8,4.036]
[1753862378142,1.23525037,3816.9,3816.8,4.036]
[1753862379275,1.23523259,3816.9,3816.8,4.036]
[1753862379480,0.33253259,3816.9,3816.8,4.036]
[1753862379651,0.33253259,3816.9,3816.8,4.1672]
[1753862379858,0.002,3816.6,3815.9,0.8271]
[1753862380063,0.002,3816.6,3816.3,0.1312]
[1753862380266,0.002,3816.6,3816.4,6.65526983]
[1753862380458,0.002,3816.6,3816.5,2.62020175]
[1753862380864,0.002,3816.6,3816.5,3.11900175]
[1753862381263,0.002,3816.6,3816.5,3.25020175]
[1753862388997,0.002,3816.6,3816.5,0.63]
[1753862389525,0.002,3816.6,3816.5,3.25020175]
[1753862390629,0.002,3816.6,3816.5,0.63]
[1753862390923,0.002,3816.6,3816.5,0.1312]
[1753862391117,0.4419,3816.6,3816.5,0.1312]
[1753862391726,0.4419,3816.6,3816.5,2.75140175]
[1753862392022,0.002,3816.6,3816.5,2.75140175]
[1753862392225,0.002,3816.6,3816.5,3.25020175]
[1753862392426,0.002,3816.6,3816.5,0.63]
[1753862393348,0.4419,3816.6,3816.5,0.1312]
[1753862393511,0.9047,3816.6,3816.4,4.035]
[1753862393712,0.4628,3816.5,3816.4,0.1312]
[1753862393914,0.4628,3816.5,3816.4,4.035]
[1753862394115,0.9027,3816.5,3816.4,4.034]
[1753862394311,1.6902,3816.5,3816.4,4.034]
[1753862395049,2.477729,3816.5,3816.4,4.034]
[1753862396307,2.608929,3816.5,3816.4,4.034]
[1753862400160,1.821429,3816.5,3815.9,0.1322]
[1753862400336,1.8725719,3816.5,3816.0,4.034]
[1753862400666,0.1312,3816.3,3816.0,4.034]
[1753862400823,0.4626,3816.2,3816.0,4.034]
[1753862401154,0.4626,3816.2,3816.0,4.5162]
[1753862401748,0.4626,3816.1,3816.0,4.034]
[1753862403443,0.9197,3816.1,3816.0,4.034]
[1753862403940,1.707307,3816.1,3816.0,4.034]
[1753862404245,0.787607,3816.1,3816.0,4.5162]
[1753862404945,0.787607,3816.1,3816.0,4.034]
[1753862405151,0.1312,3816.3,3816.0,4.5162]
[1753862405349,0.787607,3816.2,3816.1,0.4822]
[1753862405650,0.787607,3816.2,3816.1,6.6544764]
[1753862405850,0.787607,3816.2,3816.1,4.5162]
[1753862406516,0.787607,3816.2,3816.1,4.034]
[1753862406714,1.707307,3816.2,3816.1,4.034]
[1753862406948,0.8152,3816.1,3816.0,4.034]
[1753862407136,1.7349,3816.1,3816.0,4.034]
[1753862407515,0.9197,3816.1,3816.0,4.034]
[1753862407849,0.1312,3816.3,3816.0,4.5162]
[1753862408052,0.9197,3816.2,3816.0,4.034]
[1753862408353,0.9197,3816.1,3816.0,4.034]
[1753862408714,0.4626,3816.1,3816.0,4.034]
[1753862408918,0.787581,3816.2,3816.0,4.034]
[1753862409549,1.250181,3816.2,3816.0,4.034]
[1753862410833,0.9197,3816.1,3816.0,4.034]
[1753862411131,1.0509,3816.1,3815.9,0.001]
[1753862411336,1.7158,3816.0,3815.9,0.001]
[1753862411795,0.7961,3816.0,3815.9,0.001]
[1753862411951,1.7158,3816.0,3815.9,0.001]
[1753862412154,1.9600011,3816.0,3815.9,0.001]
[1753862412365,5.50351,3816.0,3815.9,0.001]
[1753862412567,6.066981,3816.0,3815.9,0.001]
[1753862413379,6.31106448,3816.0,3815.9,0.001]
[1753862413751,12.60658625,3816.0,3815.9,0.001]
[1753862413977,12.75297532,3816.0,3815.9,0.001]
[1753862415136,10.07089649,3815.6,3815.5,0.001]
[1753862415454,14.62556904,3815.6,3815.5,0.001]
[1753862415667,15.54526904,3815.6,3815.5,0.001]
[1753862418170,15.54626904,3815.6,3815.5,0.001]
[1753862418368,7.83729234,3815.6,3815.5,0.001]
[1753862418544,6.15524796,3815.6,3815.5,0.001]
[1753862418753,10.04285889,3815.6,3815.5,0.001]
[1753862418961,10.59285889,3815.6,3815.5,0.001]
[1753862419648,10.73865715,3815.6,3815.5,0.001]
[1753862420155,16.48445265,3815.6,3815.5,0.001]
[1753862421471,16.33865538,3815.6,3815.5,0.001]
[1753862422377,17.12666238,3815.6,3815.5,0.001]
[1753862424184,14.50584259,3815.6,3815.5,0.001]
[1753862424404,11.38086589,3815.6,3815.5,0.001]
[1753862424600,14.00168568,3815.6,3815.5,0.001]
[1753862424896,9.96768568,3815.6,3815.5,0.001]
[1753862425063,14.00168568,3815.6,3815.5,0.001]
[1753862425528,7.34686589,3815.6,3815.5,0.001]
[1753862425703,11.38086589,3815.6,3815.5,0.001]
[1753862426302,6.42716589,3815.6,3815.5,0.001]
[1753862426507,10.92376589,3815.6,3815.5,0.001]
[1753862426822,11.38086589,3815.6,3815.5,0.001]
[1753862426988,14.00168568,3815.6,3815.5,0.001]
[1753862429191,14.14742964,3815.6,3815.5,0.001]
[1753862430632,9.65632964,3815.6,3815.5,0.001]
[1753862430938,17.26630634,3815.6,3815.5,0.001]
[1753862435543,12.78130634,3815.6,3815.5,0.001]
[1753862435707,12.67772964,3815.6,3815.5,0.001]
[1753862436153,8.64372964,3815.6,3815.5,0.001]
[1753862436326,17.25190634,3815.6,3815.5,0.001]
[1753862437395,14.63108655,3815.6,3815.5,0.001]
[1753862437704,13.67592964,3815.6,3815.5,0.001]
[1753862438482,14.12692964,3815.6,3815.5,0.001]
[1753862443784,9.19372964,3815.6,3815.5,0.001]
[1753862444395,13.22672964,3815.6,3815.5,0.001]
[1753862444779,13.67492964,3815.6,3815.5,0.001]
[1753862445862,14.12592964,3815.6,3815.5,0.001]
[1753862447708,13.22672964,3815.6,3815.5,0.001]
[1753862448611,9.19372964,3815.6,3815.5,0.001]
[1753862448909,13.22672964,3815.6,3815.5,0.4873]
[1753862449283,12.45162964,3815.6,3815.5,0.001]
[1753862449617,12.4534565,3815.6,3815.5,0.4873]
[1753862452112,8.4204565,3815.6,3815.5,0.4873]
[1753862452320,8.4204565,3815.6,3815.5,0.001]
[1753862452519,13.3526565,3815.6,3815.5,0.001]
[1753862453180,13.10787256,3815.6,3815.5,0.001]
[1753862453379,13.35259712,3815.6,3815.5,0.001]
[1753862455226,13.35254311,3815.6,3815.5,0.001]
[1753862455904,14.13324311,3815.6,3815.5,0.001]
[1753862460883,9.66834311,3815.6,3815.5,0.001]
[1753862461086,13.70034311,3815.6,3815.5,0.001]
[1753862461306,7.87034311,3815.6,3815.5,0.001]
[1753862461490,11.90234311,3815.6,3815.5,0.4697]
[1753862461907,12.45234311,3815.6,3815.5,0.4697]
[1753862462744,9.83152332,3815.6,3815.5,0.4697]
[1753862463253,12.45234311,3815.6,3815.5,0.4697]
[1753862464943,12.91964311,3815.6,3815.5,0.001]
[1753862465644,8.88764311,3815.6,3815.5,0.001]
[1753862465953,12.91964311,3815.6,3815.5,0.001]
[1753862466257,13.37404311,3815.6,3815.5,0.001]
[1753862466558,14.13094311,3815.6,3815.5,0.001]
[1753862467746,14.13094311,3815.6,3815.5,1e-08]
[1753862467974,36.96239456,3815.2,3815.1,0.001]
[1753862468185,47.08017678,3815.2,3815.1,0.001]
[1753862468345,47.21137678,3815.2,3815.1,0.001]
[1753862468675,48.13307678,3815.2,3815.1,0.001]
[1753862471685,48.79713942,3815.2,3815.1,0.001]
[1753862473290,48.79663799,3815.2,3815.1,0.001]
[1753862473678,44.76563799,3815.2,3815.1,0.001]
[1753862473863,48.79663799,3815.2,3815.1,0.001]
[1753862475077,46.60493799,3815.2,3815.1,0.001]
[1753862475275,48.34223799,3815.2,3815.1,0.001]
[1753862475487,48.79663799,3815.2,3815.1,0.001]
[1753862477074,14.74996129,3815.2,3815.1,0.001]
[1753862477412,14.74996129,3815.2,3815.1,0.4697]
[1753862478500,9.37766129,3815.2,3815.1,0.4697]
[1753862478672,13.40866129,3815.2,3815.1,0.4697]
[1753862479006,7.78756673,3815.2,3815.1,0.4697]
[1753862479215,1.18630212,3815.2,3815.1,0.7717]
[1753862479514,8.21730212,3815.2,3815.1,0.7717]
[1753862479676,8.76730212,3815.2,3815.1,0.7717]
[1753862479876,8.21730212,3815.2,3815.1,0.7717]
[1753862480432,8.76730212,3815.2,3815.1,0.7717]
[1753862480581,4.18630212,3815.2,3815.1,0.7717]
[1753862480894,5.21730212,3815.2,3815.1,1.5954]
[1753862481416,3.71760212,3815.2,3815.1,1.5954]
[1753862481602,7.74860212,3815.2,3815.1,1.5954]
[1753862481921,3.71760212,3815.2,3815.1,1.5954]
[1753862482087,7.74860212,3815.2,3815.1,1.5954]
[1753862483105,3.71760212,3815.2,3815.1,1.5954]
[1753862483411,7.74860212,3815.2,3815.1,1.5954]
[1753862485374,3.71760212,3815.2,3815.1,1.5954]
[1753862485570,7.74760212,3815.2,3815.1,1.5954]
[1753862485802,3.71760212,3815.2,3815.1,1.5954]
[1753862486108,7.74760212,3815.2,3815.1,1.5954]
[1753862486908,3.71760212,3815.2,3815.1,1.5954]
[1753862487109,7.74760212,3815.2,3815.1,1.5954]
[1753862487808,3.71760212,3815.2,3815.1,1.5954]
[1753862488011,7.74760212,3815.2,3815.1,1.5954]
[1753862488212,3.58640212,3815.2,3815.1,1.5954]
[1753862488521,3.43976232,3815.2,3815.1,1.5954]
[1753862489299,0.19536264,3815.2,3815.1,1.5954]
[1753862489502,4.1632,3815.5,3815.1,1.5954]
[1753862489699,0.24415489,3815.4,3815.3,0.8257]
[1753862489900,0.24415489,3815.4,3815.3,1.1277]
[1753862490109,3.1332,3815.5,3815.4,0.8122]
[1753862490288,0.1332,3815.5,3815.4,0.8122]
[1753862490483,0.002,3815.5,3815.4,1.585]
[1753862490684,0.2029324,3815.5,3815.4,1.585]
[1753862490885,0.002,3815.5,3815.4,1.585]
[1753862495616,0.19543139,3815.5,3815.4,1.585]
[1753862498788,0.19543139,3815.5,3815.4,1.283]
[1753862500912,0.32663139,3815.5,3815.4,0.8122]
[1753862501114,1.11435639,3815.5,3815.4,0.8122]
[1753862501502,1.11435639,3815.5,3815.4,1.283]
[1753862502934,0.98315639,3815.5,3815.4,1.283]
[1753862505540,0.19543139,3815.5,3815.4,1.7436]
[1753862506626,0.19543139,3815.5,3815.4,1.4416]
[1753862506819,0.19543139,3815.5,3815.4,1.283]
[1753862510215,0.19543139,3815.5,3815.4,7.02893387]
[1753862510444,0.19543139,3815.5,3815.4,7.33093387]
[1753862510752,0.19543139,3815.5,3815.4,11.35693387]
[1753862510952,0.002,3815.5,3815.4,11.05493387]
[1753862511111,0.002,3815.5,3815.4,11.35693387]
[1753862512104,0.002,3815.5,3815.4,1.283]
[1753862512267,0.002,3815.5,3815.4,5.309]
[1753862512915,0.9087,3815.5,3815.1,4.8047]
[1753862513131,0.9067,3815.4,3815.1,4.8047]
[1753862513322,0.4516,3815.3,3815.1,4.8047]
[1753862513558,0.1332,3815.5,3815.1,0.7787]
[1753862513711,0.4516,3815.2,3815.1,0.7787]
[1753862513927,1.0399,3815.5,3815.1,4.8047]
[1753862514127,0.1332,3815.5,3815.1,4.8047]
[1753862514344,0.9067,3815.4,3815.1,4.8047]
[1753862514537,0.4551,3815.4,3815.1,4.8047]
[1753862514767,0.4516,3815.3,3815.1,4.8047]
[1753862515553,0.9067,3815.3,3815.1,4.8047]
[1753862516025,0.4516,3815.3,3815.1,4.8047]
[1753862517533,0.4516,3815.3,3815.1,0.7787]
[1753862517741,0.4516,3815.2,3815.1,0.7787]
[1753862518389,1.0379,3815.2,3815.1,0.001]
[1753862520429,0.82760667,3815.2,3815.1,0.001]
[1753862520734,0.5828,3815.2,3815.1,0.001]
[1753862520939,1.37069,3815.2,3815.1,0.001]
[1753862521137,1.85279,3815.2,3815.1,0.001]
[1753862521341,5.42995513,3815.2,3815.1,0.001]
[1753862521728,2.44535513,3815.2,3815.1,0.001]
[1753862521966,1.77777613,3815.2,3815.1,0.001]
[1753862522183,1.63090306,3815.2,3815.1,0.001]
[1753862522344,2.11300306,3815.2,3815.1,0.001]
[1753862531594,0.24481306,3815.2,3815.1,0.001]
[1753862531795,0.469,3815.5,3815.1,0.001]
[1753862531796,0.1312,3815.4,3815.1,0.482]
[1753862531973,0.37583229,3815.4,3815.1,0.482]
[1753862532174,0.467,3815.3,3815.1,0.001]
[1753862533398,0.6133,3815.4,3815.1,0.001]
[1753862533399,0.1312,3815.4,3815.1,0.001]
[1753862533696,0.9491,3815.2,3815.1,0.001]
[1753862535965,1.0803,3815.2,3815.1,0.001]
[1753862536366,1.386093,3815.2,3815.1,0.001]
[1753862537279,3.469,3815.5,3815.1,0.482]
[1753862537480,0.1312,3815.3,3815.1,0.482]
[1753862537867,0.84283097,3815.3,3815.1,0.482]
[1753862538068,0.5982,3815.3,3815.1,0.482]
[1753862539099,0.1312,3815.3,3815.2,0.7948]
[1753862539302,0.1312,3815.3,3815.2,3.89689456]
[1753862540702,0.1312,3815.3,3815.2,1.2758]
[1753862540999,0.1312,3815.3,3815.2,5.2998]
[1753862541696,0.1312,3815.3,3815.2,7.92089456]
[1753862542170,0.002,3815.5,3815.2,7.92088731]
[1753862542371,0.002,3815.5,3815.2,7.43988731]
[1753862542694,0.002,3815.5,3815.3,0.481]
[1753862543095,0.002,3815.5,3815.4,0.481]
[1753862544484,0.24676691,3815.5,3815.4,0.481]
[1753862545083,0.002,3815.5,3815.4,0.481]
[1753862546813,0.24676691,3815.5,3815.4,0.481]
[1753862547672,0.002,3815.5,3815.4,0.481]
[1753862548816,0.002,3815.5,3815.3,0.1312]
[1753862548974,0.002,3815.5,3815.4,3.10195717]
[1753862549174,0.002,3815.5,3815.4,3.40395717]
[1753862549712,0.002,3815.5,3815.4,3.10195717]
[1753862550077,0.002,3815.5,3815.4,7.12395717]
[1753862550277,0.002,3815.5,3815.4,4.503]
[1753862551995,0.002,3815.5,3815.4,7.88105717]
[1753862555808,0.002,3815.5,3815.4,8.18305717]
[1753862557221,0.002,3815.5,3815.4,11.30803387]
[1753862558897,0.002,3815.9,3815.8,2.62068242]
[1753862559096,0.002,3815.9,3815.8,10.54595912]
[1753862559329,0.002,3815.9,3815.8,11.43585912]
[1753862560012,0.002,3815.9,3815.8,7.22958242]
[1753862560211,0.002,3815.9,3815.8,4.1522]
[1753862560524,0.4598,3815.9,3815.8,6.77288242]
[1753862560985,0.002,3815.9,3815.8,6.77288242]
[1753862561189,0.002,3815.9,3815.8,7.22958242]
[1753862561803,0.002,3815.9,3815.8,4.6089]
[1753862562016,0.002,3815.9,3815.8,4.63510682]
[1753862563110,0.002,3815.9,3815.8,6.77288242]
[1753862563317,0.002,3815.9,3815.8,4.1522]
[1753862563933,0.002,3815.9,3815.8,6.77288242]
[1753862564219,0.002,3815.9,3815.8,7.22958242]
[1753862564598,0.002,3815.9,3815.8,4.6089]
[1753862564787,0.002,3815.9,3815.8,7.22958242]
[1753862568125,0.002,3815.9,3815.8,8.03748242]
[1753862568314,0.002,3815.9,3815.8,8.33948242]
[1753862568729,0.002,3815.9,3815.8,8.03748242]
[1753862569239,0.002,3815.9,3815.8,8.33948242]
[1753862570448,0.4813,3816.8,3815.8,8.33948242]
[1753862570449,0.7917,3817.9,3816.1,0.8079]
[1753862570606,0.4578,3816.6,3816.3,2.62033907]
[1753862570827,0.9391,3816.5,3816.4,6.63927041]
[1753862571143,0.9391,3816.5,3816.4,6.77047041]
[1753862571313,0.4578,3816.5,3816.4,6.77047041]
[1753862571518,0.9391,3816.5,3816.4,6.77047041]
[1753862574838,0.9411,3816.5,3816.4,6.77047041]
[1753862580352,0.4598,3816.5,3816.4,6.77047041]
[1753862580757,0.9524,3816.5,3816.4,6.77047041]
[1753862581262,0.9524,3816.5,3816.4,4.019]
[1753862582127,0.9524,3816.5,3816.4,6.63927041]
[1753862583689,0.9524,3816.5,3816.2,0.1312]
[1753862583846,0.002,3816.5,3816.3,4.018]
[1753862584173,0.9347,3816.4,3816.3,6.63832855]
[1753862584778,0.002,3816.5,3816.3,6.63832855]
[1753862584981,0.002,3816.5,3816.4,2.62027041]
[1753862585177,0.002,3816.5,3816.4,3.40617311]
[1753862585383,0.002,3816.9,3816.8,2.6199958]
[1753862585680,0.002,3816.9,3816.8,10.70927245]
[1753862585899,0.002,3816.9,3816.8,11.4427725]
[1753862586191,0.1712,3817.9,3817.8,2.61930955]
[1753862586192,0.04,3817.9,3817.8,2.61930955]
[1753862586338,0.04,3817.9,3817.8,6.63730955]
[1753862586682,0.04,3817.9,3817.8,7.22620955]
[1753862587086,0.04,3817.9,3817.8,7.52820955]
[1753862587270,0.04,3817.9,3817.8,8.32320955]
[1753862588482,0.002,3818.6,3818.1,3.41410374]
[1753862588689,0.002,3818.6,3818.1,10.58227147]
[1753862588854,0.002,3818.6,3818.1,11.44698044]
[1753862590559,0.002,3818.6,3818.5,3.41382938]
[1753862590759,0.002,3818.6,3818.5,10.55580608]
[1753862591061,0.002,3818.6,3818.5,11.44670608]
[1753862594086,0.002,3818.6,3818.5,11.14470608]
[1753862594297,0.002,3818.6,3818.5,11.44670608]
[1753862597020,0.04,3818.9,3818.8,2.61862365]
[1753862597324,0.04,3818.9,3818.8,10.58168658]
[1753862597507,0.04,3818.9,3818.8,10.55550035]
[1753862597677,0.04,3818.9,3818.8,11.14440035]
[1753862598288,0.04,3818.9,3818.8,11.44640035]
[1753862598635,0.04,3818.9,3818.8,11.14440035]
[1753862598779,0.04,3818.9,3818.8,11.44640035]
[1753862599483,0.04,3818.9,3818.8,11.14440035]
[1753862600031,0.04,3818.9,3818.8,7.12940035]
[1753862600186,0.04,3818.9,3818.8,11.14340035]
[1753862601214,0.04,3818.9,3818.8,11.44540035]
[1753862601722,0.04,3818.9,3818.8,11.14340035]
[1753862611218,0.04,3818.9,3818.8,6.76382365]
[1753862611540,0.4718,3818.9,3818.8,9.88880035]
[1753862611846,0.04,3818.9,3818.8,9.88880035]
[1753862612024,0.04,3818.9,3818.8,10.35380035]
[1753862613464,0.04,3818.9,3818.8,11.10790035]
[1753862614652,0.9264,3819.5,3819.4,2.61821228]
[1753862614959,0.4946,3819.5,3819.4,9.88638898]
[1753862615362,0.9264,3819.5,3819.4,9.88638898]
[1753862617386,0.9264,3819.5,3819.4,5.87438898]
[1753862617570,0.9264,3819.5,3819.4,9.88638898]
[1753862618067,0.9264,3819.5,3819.4,5.87438898]
[1753862618265,0.9264,3819.5,3819.4,9.88638898]
[1753862619399,0.9284,3819.5,3819.4,2.74941228]
[1753862619538,0.9284,3819.5,3819.4,9.88638898]
[1753862622596,0.9284,3819.5,3819.4,5.87438898]
[1753862622796,0.9284,3819.5,3819.4,9.88538898]
[1753862623298,0.9284,3819.5,3819.4,6.76041228]
[1753862626613,0.002,3819.5,3819.4,9.88538898]
[1753862626898,0.9284,3819.5,3819.4,9.88538898]
[1753862628701,0.9284,3819.5,3819.4,9.38538898]
[1753862630806,0.4338,3819.5,3819.4,9.38538898]
[1753862631903,0.002,3819.5,3819.4,9.38538898]
[1753862632208,0.002,3819.5,3819.4,10.67318898]
[1753862632773,0.002,3819.5,3819.4,9.38538898]
[1753862633126,0.4338,3819.5,3819.4,9.38538898]